bitfinex/quotes_SOLUSD_20251208
["timestamp","ask_amount","ask_price","bid_price","bid_amount"]
[1765225636277,8.80994492,134.26,134.21,6.85471291]
[1765225636477,13.78645401,134.26,134.21,0.7]
[1765225636680,20.54116692,134.26,134.22,0.7]
[1765225636902,8.16,134.25,134.22,0.7]
[1765225637497,8.16,134.25,134.22,8.15011238]
[1765225639678,8.80994492,134.24,134.22,0.7]
[1765225640401,8.80994492,134.24,134.22,70.25043018]
[1765225644013,14.96465783,134.24,134.22,62.1]
[1765225644792,8.80994492,134.24,134.22,69.55037398]
[1765225645113,14.31471291,134.25,134.22,69.55037398]
[1765225645114,8.16,134.25,134.23,0.7]
[1765225645292,8.16,134.25,134.23,8.14972767]
[1765225645613,14.91471291,134.25,134.22,69.55002383]
[1765225645819,14.91471291,134.25,134.21,62.1]
[1765225645820,6.15471291,134.23,134.21,62.1]
[1765225646018,6.15471291,134.23,134.2,69.75105521]
[1765225646192,14.31471291,134.23,134.2,70.45105521]
[1765225646512,8.16,134.23,134.22,7.45045447]
[1765225646722,16.96994492,134.25,134.23,7.44977955]
[1765225646931,8.80994492,134.27,134.23,13.60449246]
[1765225647218,8.80994492,134.27,134.24,0.7]
[1765225647509,8.80994492,134.28,134.25,7.44878957]
[1765225647909,8.80994492,134.28,134.25,8.14878957]
[1765225648417,22.41187656,134.28,134.25,8.14878957]
[1765225648598,23.01187656,134.28,134.24,7.44913307]
[1765225648799,0.6,134.27,134.24,7.44913307]
[1765225649020,8.16,134.26,134.24,7.44913307]
[1765225649221,8.16,134.26,134.23,70.24974164]
[1765225650738,8.16,134.26,134.24,0.7]
[1765225652220,8.16,134.26,134.24,62.8]
[1765225653142,8.16,134.26,134.24,70.24928377]
[1765225654447,8.16,134.26,134.24,62.1]
[1765225654448,8.80994492,134.25,134.24,62.1]
[1765225655516,8.80994492,134.25,134.24,70.24934445]
[1765225655718,8.16,134.26,134.24,70.24934445]
[1765225657338,8.16,134.26,134.24,69.54934445]
[1765225657554,16.96994492,134.26,134.25,0.7]
[1765225658263,16.96994492,134.26,134.25,62.8]
[1765225658462,8.16,134.26,134.25,70.24878957]
[1765225658653,16.96994492,134.28,134.25,70.24878957]
[1765225658838,16.96994492,134.28,134.25,62.1]
[1765225658839,27.60344613,134.28,134.25,62.1]
[1765225659037,0.6,134.27,134.25,62.1]
[1765225659240,19.55627544,134.26,134.25,62.1]
[1765225659761,20.15627544,134.26,134.25,62.1]
[1765225659958,25.1372427,134.26,134.25,62.1]
[1765225660336,32.58547746,134.26,134.25,62.1]
[1765225660736,39.65522701,134.26,134.25,62.1]
[1765225660970,58.27581393,134.26,134.2,0.2]
[1765225661152,18.46602499,134.21,134.2,0.2]
[1765225661347,26.62602499,134.21,134.2,0.2]
[1765225661667,27.22602499,134.21,134.2,0.2]
[1765225663166,26.62602499,134.21,134.2,0.2]
[1765225663964,16.96994492,134.21,134.2,0.2]
[1765225664168,16.96994492,134.21,134.2,0.9]
[1765225664469,16.96994492,134.21,134.2,0.2]
[1765225665174,24.42095453,134.21,134.2,0.2]
[1765225666552,34.6770346,134.21,134.2,0.2]
[1765225666751,39.66598625,134.21,134.2,0.2]
[1765225668095,39.06598625,134.21,134.2,0.2]
[1765225668560,39.66598625,134.21,134.2,0.2]
[1765225668761,39.06598625,134.21,134.2,0.2]
[1765225670086,21.95889657,134.21,134.2,0.2]
[1765225671758,4.98895165,134.21,134.2,0.87]
[1765225671995,4.98895165,134.23,134.2,80.07764489]
[1765225672200,8.16,134.25,134.21,0.67]
[1765225672401,5.00450813,134.24,134.21,10.32608007]
[1765225672565,8.80994492,134.24,134.21,10.32608007]
[1765225672769,8.80994492,134.24,134.22,0.67]
[1765225674084,8.80994492,134.24,134.23,7.44989942]
[1765225674385,8.16,134.25,134.23,7.44989942]
[1765225674691,8.80994492,134.26,134.24,0.67]
[1765225674867,5.00531783,134.25,134.24,0.67]
[1765225676292,5.00531783,134.26,134.24,17.77542452]
[1765225676679,5.00531783,134.26,134.25,0.67]
[1765225678691,5.00515138,134.26,134.25,8.1185766]
[1765225679587,5.00515138,134.26,134.24,17.10522855]
[1765225679765,5.00515138,134.26,134.24,17.77522855]
[1765225680106,5.00515138,134.26,134.25,0.67]
[1765225680278,5.00515138,134.26,134.25,8.11878957]
[1765225680479,5.00515138,134.26,134.22,0.67]
[1765225680480,14.66123145,134.26,134.22,0.67]
[1765225680702,13.81515385,134.25,134.22,8.12010164]
[1765225680877,8.80994492,134.23,134.2,0.87]
[1765225681199,18.45716291,134.23,134.2,7.65135245]
[1765225681386,13.45317444,134.23,134.2,0.2]
[1765225681584,12.85317444,134.23,134.2,0.2]
[1765225681780,13.45317444,134.23,134.2,0.2]
[1765225681975,13.45317444,134.23,134.2,7.65142598]
[1765225682200,8.80994492,134.23,134.21,7.45095298]
[1765225683394,13.81437015,134.23,134.21,0.67]
[1765225683704,13.81437015,134.23,134.2,7.65131979]
[1765225683897,13.81437015,134.23,134.2,8.32131979]
[1765225684090,8.80994492,134.23,134.2,8.32131979]
[1765225684404,13.81494207,134.23,134.2,8.32131979]
[1765225685077,8.80994492,134.23,134.2,7.65131979]
[1765225685278,13.81469308,134.23,134.21,10.37630867]
[1765225685486,13.81469308,134.23,134.21,0.72]
[1765225685684,13.81469308,134.23,134.2,7.65131979]
[1765225685888,8.16,134.22,134.2,0.2]
[1765225686085,8.80994492,134.21,134.2,0.2]
[1765225686501,8.16,134.22,134.21,0.72]
[1765225686700,21.97356081,134.24,134.21,0.72]
[1765225687002,5.00361589,134.23,134.21,0.72]
[1765225687305,5.00361589,134.23,134.21,17.82683281]
[1765225687889,5.00361589,134.23,134.2,17.30772132]
[1765225688207,21.97372466,134.22,134.2,7.65141265]
[1765225688408,8.80994492,134.22,134.2,7.65141265]
[1765225688605,21.97352376,134.22,134.2,0.2]
[1765225688787,16.96994492,134.22,134.2,0.2]
[1765225689304,8.16,134.22,134.21,0.72]
[1765225689480,8.80994492,134.23,134.21,0.72]
[1765225689681,16.96994492,134.24,134.21,0.72]
[1765225690707,5.00379985,134.23,134.21,0.72]
[1765225690895,5.00379985,134.23,134.21,62.82]
[1765225691099,5.00379985,134.23,134.21,62.1]
[1765225691300,8.80994492,134.22,134.21,62.1]
[1765225691698,13.81350397,134.23,134.21,62.1]
[1765225691896,8.80994492,134.23,134.21,62.1]
[1765225693111,8.80994492,134.23,134.21,70.27094383]
[1765225693286,8.16,134.24,134.22,0.72]
[1765225693485,5.00459334,134.23,134.22,0.72]
[1765225695215,5.00459334,134.23,134.22,8.17045447]
[1765225697021,5.00459334,134.23,134.22,70.27045447]
[1765225697597,8.16,134.24,134.22,70.27045447]
[1765225699614,8.16,134.24,134.22,69.55045447]
[1765225700302,9.40994492,134.23,134.22,62.1]
[1765225700509,14.41504785,134.23,134.22,62.1]
[1765225700709,13.81504785,134.23,134.22,62.1]
[1765225701305,13.81463758,134.23,134.22,62.1]
[1765225701507,30.92084567,134.23,134.2,0.2]
[1765225701712,8.80994492,134.21,134.2,0.2]
[1765225702222,13.81373322,134.21,134.2,0.2]
[1765225702525,13.81373322,134.21,134.2,0.86]
[1765225702823,8.80994492,134.21,134.2,0.2]
[1765225703712,8.80994492,134.21,134.2,8.31156482]
[1765225703914,8.80994492,134.21,134.2,0.86]
[1765225704221,8.16,134.22,134.2,8.31156482]
[1765225704720,8.16,134.22,134.21,0.66]
[1765225704907,13.17063324,134.22,134.21,0.66]
[1765225705106,13.17063324,134.22,134.21,8.11100961]
[1765225705309,5.01063324,134.22,134.21,8.11100961]
[1765225705516,5.01063324,134.22,134.21,17.76731828]
[1765225705709,8.16,134.24,134.21,36.3948423]
[1765225705911,5.01080945,134.23,134.22,10.31630867]
[1765225706329,5.01080945,134.23,134.22,0.66]
[1765225707233,5.01080945,134.23,134.22,8.11045447]
[1765225707905,5.01080945,134.23,134.22,12.1532376]
[1765225708402,13.82075437,134.23,134.21,11.49357815]
[1765225708602,8.80994492,134.23,134.21,0.66]
[1765225708927,8.80994492,134.23,134.21,62.1]
[1765225709226,5.01110719,134.22,134.21,62.1]
[1765225709625,21.98105211,134.22,134.21,62.1]
[1765225711734,8.80994492,134.21,134.2,0.2]
[1765225711923,18.46383524,134.21,134.2,0.2]
[1765225712519,25.91484485,134.21,134.2,0.2]
[1765225712928,25.91484485,134.21,134.19,62.3]
[1765225713128,17.81389032,134.2,134.19,62.3]
[1765225713440,17.81389032,134.2,134.19,0.2]
[1765225714140,34.07540006,134.2,134.19,0.2]
[1765225716428,40.33957411,134.2,134.19,0.2]
[1765225717849,39.73957411,134.2,134.19,0.2]
[1765225718148,21.98105211,134.2,134.19,0.2]
[1765225719548,34.07540006,134.2,134.19,0.2]
[1765225719935,33.47540006,134.2,134.19,0.2]
[1765225720339,34.07540006,134.2,134.19,0.2]
[1765225722646,32.62277221,134.2,134.19,0.2]
[1765225729756,32.02277221,134.2,134.19,0.86]
[1765225729958,29.43261693,134.2,134.19,0.86]
[1765225730273,21.98105211,134.2,134.19,0.86]
[1765225730685,29.43261693,134.2,134.19,0.86]
[1765225730884,32.62277221,134.2,134.19,0.2]
[1765225731953,32.02277221,134.2,134.19,0.2]
[1765225733686,32.02277221,134.2,134.19,0.9]
[1765225733913,32.02277221,134.2,134.19,0.2]
[1765225735805,32.02277221,134.2,134.19,0.9]
[1765225736115,25.11880892,134.18,134.17,0.2]
[1765225736302,40.88007139,134.18,134.17,0.2]
[1765225736496,41.48007139,134.18,134.17,0.2]
[1765225737312,40.88007139,134.18,134.17,0.2]
[1765225737817,48.3327469,134.18,134.17,0.2]
[1765225738018,48.3327469,134.18,134.17,0.9]
[1765225738394,21.98105211,134.18,134.17,0.9]
[1765225740140,16.96994492,134.18,134.17,0.9]
[1765225740323,19.5601002,134.21,134.17,8.35323097]
[1765225740527,8.80994492,134.19,134.17,0.9]
[1765225740722,16.96994492,134.19,134.18,0.7]
[1765225741135,26.676962,134.22,134.18,0.7]
[1765225741136,7.45082581,134.22,134.18,0.7]
[1765225741438,4.99758981,134.23,134.21,2.59015528]
[1765225741637,4.99758981,134.24,134.22,3.29015528]
[1765225741807,8.16,134.25,134.23,0.7]
[1765225742008,13.15631163,134.25,134.23,0.7]
[1765225742224,8.16,134.27,134.23,3.29015528]
[1765225742404,8.80994492,134.26,134.23,3.29015528]
[1765225742608,8.80994492,134.26,134.24,0.7]
[1765225743416,8.80994492,134.26,134.24,8.14919903]
[1765225743624,8.80994492,134.26,134.24,10.73935431]
[1765225743832,8.80994492,134.26,134.25,0.7]
[1765225746034,8.80994492,134.26,134.25,8.14878957]
[1765225746416,8.80994492,134.26,134.25,0.7]
[1765225748118,8.80994492,134.26,134.22,80.72613619]
[1765225748119,13.79757768,134.26,134.22,64.69015528]
[1765225748322,8.80994492,134.26,134.25,0.7]
[1765225749637,8.16,134.27,134.25,10.73894485]
[1765225750148,4.98683283,134.28,134.26,3.29015528]
[1765225750455,8.80994492,134.29,134.27,2.59015528]
[1765225750644,8.80994492,134.29,134.28,0.7]
[1765225759261,8.80994492,134.29,134.28,62.8]
[1765225759465,8.80994492,134.29,134.28,62.1]
[1765225759966,35.75553505,134.29,134.23,8.14958853]
[1765225760144,8.80994492,134.26,134.24,0.7]
[1765225760351,16.96994492,134.26,134.24,0.7]
[1765225761764,16.96994492,134.26,134.25,7.44878957]
[1765225762061,16.96994492,134.26,134.24,8.14913838]
[1765225762577,16.96994492,134.26,134.25,0.7]
[1765225764869,8.80994492,134.27,134.25,8.1487104]
[1765225765058,8.80994492,134.27,134.25,70.2487104]
[1765225765242,8.80994492,134.27,134.26,0.7]
[1765225766855,8.80994492,134.27,134.26,8.14823476]
[1765225767671,26.34470736,134.31,134.26,72.83839004]
[1765225767854,16.96994492,134.3,134.27,0.7]
[1765225768978,0.6,134.29,134.26,62.1]
[1765225769162,16.96994492,134.28,134.26,62.1]
[1765225769470,8.80994492,134.3,134.27,8.14768004]
[1765225769659,16.96994492,134.3,134.27,8.14768004]
[1765225769976,16.96994492,134.3,134.28,0.7]
[1765225770184,16.96994492,134.3,134.28,8.14676524]
[1765225770596,16.96994492,134.3,134.29,0.7]
[1765225770899,16.96994492,134.3,134.29,62.8]
[1765225771397,16.96994492,134.3,134.29,62.1]
[1765225771779,24.4159613,134.3,134.29,62.1]
[1765225773194,16.96994492,134.3,134.29,62.1]
[1765225774013,16.96994492,134.3,134.27,70.24741504]
[1765225774204,16.96994492,134.3,134.28,0.7]
[1765225774379,24.41614161,134.3,134.27,62.1]
[1765225774576,8.80994492,134.28,134.27,62.1]
[1765225775195,8.80994492,134.28,134.27,62.8]
[1765225775372,27.6072256,134.28,134.27,62.1]
[1765225776105,27.0072256,134.28,134.27,62.1]
[1765225778802,46.22503912,134.28,134.24,0.7]
[1765225778979,8.80994492,134.26,134.24,0.7]
[1765225779178,16.96994492,134.26,134.24,0.7]
[1765225779406,19.5601002,134.26,134.22,8.15029058]
[1765225779610,8.80994492,134.24,134.23,0.7]
[1765225779903,8.80994492,134.24,134.21,70.25086321]
[1765225780106,16.96994492,134.24,134.22,0.7]
[1765225781898,8.80994492,134.22,134.2,0.7]
[1765225782102,16.96994492,134.22,134.21,0.7]
[1765225783893,21.97537035,134.22,134.21,0.7]
[1765225785806,13.81537035,134.22,134.21,0.7]
[1765225786923,13.81537035,134.23,134.21,8.15100961]
[1765225787226,8.80994492,134.23,134.21,8.15100961]
[1765225787391,8.80994492,134.23,134.22,0.7]
[1765225787595,13.82052272,134.23,134.22,0.7]
[1765225787900,13.82052272,134.23,134.22,8.15045447]
[1765225788919,13.82052272,134.23,134.22,70.25045447]
[1765225789294,13.82052272,134.23,134.22,62.8]
[1765225790300,13.82052272,134.23,134.22,70.25045447]
[1765225790301,5.0105778,134.23,134.22,70.25045447]
[1765225790501,8.16,134.24,134.22,70.25045447]
[1765225790701,16.96994492,134.24,134.23,0.7]
[1765225790933,21.97871888,134.24,134.23,62.8]
[1765225791121,5.00877396,134.24,134.23,62.8]
[1765225791314,5.00877396,134.24,134.23,70.24989942]
[1765225791893,5.00877396,134.24,134.23,62.8]
[1765225792098,5.00877396,134.24,134.23,62.1]
[1765225792099,34.07277762,134.24,134.23,62.1]
[1765225792735,34.07277762,134.24,134.19,7.45190494]
[1765225792949,8.80994492,134.2,134.18,0.68]
[1765225793126,17.86343317,134.2,134.18,0.68]
[1765225793323,12.85465921,134.2,134.18,0.68]
[1765225794352,12.85465921,134.2,134.18,8.13251124]
[1765225794537,8.80994492,134.2,134.18,8.13251124]
[1765225794732,8.80994492,134.2,134.19,0.68]
[1765225795251,8.80994492,134.2,134.18,7.45251124]
[1765225795455,8.80994492,134.2,134.18,8.13251124]
[1765225795634,8.80994492,134.22,134.19,0.68]
[1765225795834,5.00367844,134.21,134.19,0.68]
[1765225796049,13.81362336,134.22,134.19,0.68]
[1765225796239,5.00367844,134.21,134.19,0.68]
[1765225797871,5.00367844,134.21,134.2,7.45156482]
[1765225798236,8.80994492,134.2,134.19,62.1]
[1765225799365,8.80994492,134.2,134.17,11.69768884]
[1765225799366,18.45396832,134.2,134.17,0.2]
[1765225799557,8.80994492,134.18,134.17,0.2]
[1765225800432,8.80994492,134.18,134.17,0.87]
[1765225801341,8.16,134.19,134.17,0.87]
[1765225801541,12.85465921,134.18,134.17,0.2]
[1765225801749,18.44998723,134.18,134.17,0.2]
[1765225802058,42.21152674,134.18,134.17,0.2]
[1765225802768,16.96994492,134.18,134.17,0.87]
[1765225803143,0.6,134.21,134.17,8.32323097]
[1765225803144,11.49591054,134.21,134.17,8.32323097]
[1765225803357,21.96145515,134.2,134.18,0.67]
[1765225803531,16.96994492,134.2,134.17,0.87]
[1765225803737,8.80994492,134.18,134.17,0.2]
[1765225804149,8.76,134.2,134.17,7.65318443]
[1765225804150,15.61178671,134.2,134.17,7.65318443]
[1765225804342,8.80994492,134.19,134.17,8.32318443]
[1765225804552,8.80994492,134.19,134.18,0.67]
[1765225804941,13.45465921,134.19,134.17,0.2]
[1765225805280,21.61465921,134.18,134.17,0.2]
[1765225805438,21.61465921,134.18,134.14,0.8693]
[1765225805439,8.80994492,134.17,134.14,0.8693]
[1765225805639,12.85465921,134.17,134.14,0.8693]
[1765225805841,12.85465921,134.17,134.14,0.1993]
[1765225806074,8.80994492,134.15,134.14,0.8693]
[1765225806251,12.85465921,134.15,134.14,0.1993]
[1765225806443,8.80994492,134.15,134.14,0.1993]
[1765225806641,8.80994492,134.15,134.14,8.32419786]
[1765225807240,16.308864,134.19,134.14,12.36891215]
[1765225807241,27.80588109,134.19,134.14,12.36891215]
[1765225807442,16.96994492,134.18,134.15,0.67]
[1765225807638,16.96994492,134.18,134.15,4.71471429]
[1765225807856,8.80994492,134.21,134.17,4.04471429]
[1765225808142,8.16,134.21,134.18,7.45267551]
[1765225808354,8.16,134.21,134.18,12.1673898]
[1765225808551,8.16,134.21,134.19,0.67]
[1765225810483,8.80994492,134.2,134.17,0.67]
[1765225810644,12.85465921,134.2,134.15,74.26867429]
[1765225810975,8.80994492,134.18,134.16,0.67]
[1765225811346,8.80994492,134.18,134.14,8.32402395]
[1765225811569,12.85465921,134.18,134.14,8.32402395]
[1765225811889,12.85465921,134.18,134.15,0.67]
[1765225812467,8.80994492,134.18,134.15,0.67]
[1765225812859,16.26271413,134.18,134.15,0.67]
[1765225813380,8.80994492,134.16,134.15,0.67]
[1765225813754,8.80994492,134.18,134.15,12.16905644]
[1765225813978,8.80994492,134.2,134.16,4.04471429]
[1765225814180,16.96994492,134.2,134.16,4.71471429]
[1765225814479,16.96994492,134.2,134.17,0.67]
[1765225815159,12.85465921,134.18,134.14,9.0293]
[1765225815479,8.80994492,134.16,134.14,0.1993]
[1765225815682,8.80994492,134.16,134.14,62.9693]
[1765225816478,8.80994492,134.16,134.14,70.42385847]
[1765225817760,8.80994492,134.17,134.15,0.67]
[1765225819983,16.26318958,134.17,134.14,62.2993]
[1765225820283,16.26318958,134.17,134.14,70.42409954]
[1765225822481,8.80994492,134.15,134.14,62.2993]
[1765225824492,8.80994492,134.15,134.14,63.0193]
[1765225824858,8.80994492,134.15,134.14,70.47419786]
[1765225825065,8.16,134.16,134.14,70.47419786]
[1765225825289,8.80994492,134.17,134.15,0.72]
[1765225825563,13.81220122,134.17,134.15,0.72]
[1765225826886,13.81220122,134.17,134.15,8.1741647]
[1765225827273,8.16,134.18,134.16,0.72]
[1765225827591,8.16,134.18,134.16,62.82]
[1765225827799,13.16386433,134.18,134.16,62.82]
[1765225828086,8.16,134.18,134.16,62.82]
[1765225828276,8.80994492,134.17,134.16,62.1]
[1765225828477,18.45994005,134.17,134.16,62.1]
[1765225828894,25.91317102,134.17,134.16,62.1]
[1765225829563,25.31317102,134.17,134.16,62.1]
[1765225830488,13.81522576,134.17,134.16,62.1]
[1765225832393,21.26845673,134.17,134.16,62.1]
[1765225833398,21.26845673,134.17,134.14,70.4739537]
[1765225833567,20.61916132,134.16,134.14,62.2993]
[1765225833767,8.80994492,134.15,134.14,62.2993]
[1765225834179,13.81926502,134.15,134.14,62.2993]
[1765225834675,13.81926502,134.15,134.14,63.0193]
[1765225835073,23.48386574,134.15,134.14,62.2993]
[1765225835284,13.81926502,134.15,134.14,62.2993]
[1765225835468,30.93820789,134.15,134.14,0.1993]
[1765225836097,31.53820789,134.15,134.14,0.1993]
[1765225838669,30.93820789,134.15,134.14,0.9193]
[1765225839072,21.97926502,134.15,134.14,0.9193]
[1765225842984,30.03360717,134.15,134.14,0.1993]
[1765225843201,36.201379,134.15,134.14,0.1993]
[1765225843505,36.20735875,134.15,134.14,0.1993]
[1765225843718,52.51622275,134.15,134.13,0.2]
[1765225843879,34.21750612,134.14,134.11,0.2]
[1765225844086,21.24730841,134.12,134.11,0.1]
[1765225844280,25.11880892,134.11,134.1,0.2]
[1765225844480,50.7263114,134.11,134.1,0.2]
[1765225844677,44.55853957,134.11,134.1,0.2]
[1765225844882,38.29410877,134.11,134.1,0.2]
[1765225845994,45.75067427,134.11,134.1,0.2]
[1765225846283,51.9184461,134.11,134.1,0.2]
[1765225846484,52.2184461,134.11,134.1,0.2]
[1765225846793,51.9184461,134.11,134.1,0.2]
[1765225846984,30.13410877,134.11,134.1,0.2]
[1765225847187,8.80994492,134.13,134.1,14.54489338]
[1765225847408,8.80994492,134.13,134.11,6.16777183]
[1765225847602,8.80994492,134.14,134.11,6.88777183]
[1765225848207,8.80994492,134.14,134.11,8.17648566]
[1765225848412,8.80994492,134.12,134.1,0.2]
[1765225848619,8.18,134.11,134.1,0.2]
[1765225849905,24.44651042,134.11,134.1,0.2]
[1765225850092,25.10651042,134.11,134.1,0.2]
[1765225850293,31.27428225,134.11,134.1,0.2]
[1765225850503,17.64994492,134.11,134.1,0.2]
[1765225851017,16.98994492,134.11,134.1,0.2]
[1765225851320,24.44651042,134.11,134.1,0.2]
[1765225852319,25.09651042,134.11,134.1,0.2]
[1765225852834,27.68963228,134.11,134.1,0.2]
[1765225855420,43.99849628,134.11,134.1,0.2]
[1765225856804,43.99849628,134.11,134.08,0.2]
[1765225856805,25.11880892,134.09,134.08,0.2]
[1765225857005,8.80994492,134.08,134.06,0.2]
[1765225857209,11.40306678,134.06,134.05,0.2]
[1765225857598,12.05306678,134.06,134.05,0.2]
[1765225858315,22.1055352,134.06,134.05,1e-08]
[1765225858626,9.45994492,134.05,134.01,0.2]
[1765225858802,25.11880892,134.03,134.01,0.2]
[1765225859003,31.30363194,134.03,134.01,0.2]
[1765225859306,36.9407257,134.03,134.01,0.2]
[1765225859619,8.80994492,134.02,134.01,0.2]
[1765225859817,28.8118617,134.02,134.01,0.2]
[1765225860420,36.27343459,134.02,134.01,0.2]
[1765225860614,36.27343459,134.02,134.01,1e-08]
[1765225860929,25.11880892,134.0,133.99,0.2]
[1765225861100,44.4707257,134.0,133.99,0.2]
[1765225861302,45.1307257,134.0,133.99,0.2]
[1765225862209,30.10590268,134.0,133.99,0.2]
[1765225862414,51.93341226,134.0,133.99,0.2]
[1765225863005,52.59341226,134.0,133.99,0.2]
[1765225863219,51.93341226,134.0,133.99,0.2]
[1765225863626,51.91531205,134.0,133.99,0.2]
[1765225863923,51.91531578,134.0,133.99,0.2]
[1765225865426,25.11880892,134.0,133.99,0.92]
[1765225865626,8.80994492,134.0,133.99,8.38324352]
[1765225865930,8.18,134.01,133.99,8.38324352]
[1765225866143,8.18,134.01,134.0,0.72]
[1765225866312,16.98994492,134.01,134.0,0.72]
[1765225866620,8.18,134.01,134.0,6.90482302]
[1765225866809,16.98994492,134.03,134.0,6.90482302]
[1765225867011,16.98994492,134.03,134.01,0.72]
[1765225867926,8.80994492,134.03,134.01,0.72]
[1765225868230,16.98994492,134.03,134.01,0.72]
[1765225868551,24.45099322,134.03,134.01,0.72]
[1765225869421,30.63581624,134.03,133.99,0.92]
[1765225869735,30.63581624,134.03,134.0,0.72]
[1765225871029,8.80994492,134.04,134.01,13.64686252]
[1765225871537,8.80994492,134.04,134.02,0.72]
[1765225871736,8.18,134.03,134.02,0.72]
[1765225872227,8.18,134.03,134.01,62.82]
[1765225873019,8.18,134.03,134.02,0.72]
[1765225873731,8.18,134.03,134.02,14.36639591]
[1765225874143,28.62690767,134.11,134.02,14.36639591]
[1765225874439,6.18482302,134.09,134.04,6.18482302]
[1765225874648,8.80994492,134.09,134.05,6.18482302]
[1765225875009,8.80994492,134.09,134.06,0.72]
[1765225875226,8.80994492,134.07,134.06,0.72]
[1765225875621,8.80994492,134.07,134.06,14.36416958]
[1765225876027,8.18,134.08,134.06,14.36416958]
[1765225876345,8.18,134.1,134.07,6.90482302]
[1765225876518,15.65476794,134.09,134.03,0.72]
[1765225876842,8.80994492,134.06,134.03,6.90482302]
[1765225877051,8.80994492,134.07,134.03,6.90482302]
[1765225877214,8.80994492,134.07,134.04,0.72]
[1765225877411,8.80994492,134.07,134.04,8.18033206]
[1765225877811,16.26886492,134.07,134.05,0.72]
[1765225878012,8.80994492,134.07,134.05,0.72]
[1765225879532,8.18,134.06,134.05,0.72]
[1765225881241,8.18,134.08,134.05,76.46472604]
[1765225881445,16.98994492,134.1,134.08,7.45823389]
[1765225881646,16.98994492,134.1,134.08,13.64305691]
[1765225881854,16.98994492,134.1,134.09,0.69]
[1765225882350,8.80994492,134.09,134.07,70.24868886]
[1765225882555,8.80994492,134.09,134.08,0.69]
[1765225883857,8.18,134.1,134.08,14.33305691]
[1765225884157,8.18,134.1,134.09,6.18482302]
[1765225884356,8.18,134.1,134.09,6.87482302]
[1765225884652,16.98994492,134.12,134.09,6.87482302]
[1765225884852,16.98994492,134.12,134.08,7.45823389]
[1765225884853,16.98994492,134.12,134.1,6.87482302]
[1765225885364,16.98994492,134.12,134.11,0.69]
[1765225885560,16.98994492,134.12,134.1,0.69]
[1765225886057,8.80994492,134.12,134.1,0.69]
[1765225886240,16.98994492,134.12,134.1,0.69]
[1765225887041,16.98994492,134.12,134.1,6.87482302]
[1765225887362,16.98994492,134.12,134.1,14.33184341]
[1765225887551,16.98994492,134.14,134.11,6.87482302]
[1765225887752,16.98994492,134.14,134.12,0.69]
[1765225887952,16.98994492,134.14,134.13,6.18482302]
[1765225888156,16.98994492,134.14,134.12,0.69]
[1765225888459,16.98994492,134.14,134.13,13.64027668]
[1765225888861,16.98994492,134.14,134.13,14.33027668]
[1765225889256,16.98994492,134.14,134.13,0.69]
[1765225889663,16.98994492,134.14,134.12,6.18482302]
[1765225889976,16.98994492,134.14,134.13,0.69]
[1765225890173,7.0812466,134.21,134.13,14.33027668]
[1765225890350,17.65994492,134.2,134.16,6.18482302]
[1765225890550,8.80994492,134.18,134.16,6.18482302]
[1765225891270,8.80994492,134.18,134.16,13.63850854]
[1765225891471,8.80994492,134.18,134.16,6.18482302]
[1765225892269,8.80994492,134.18,134.16,13.63849859]
[1765225894084,17.178864,134.21,134.17,6.18482302]
[1765225894369,8.80994492,134.2,134.18,6.18482302]
[1765225894578,8.80994492,134.2,134.19,6.18482302]
[1765225895063,8.80994492,134.2,134.18,6.18482302]
[1765225895410,8.80994492,134.2,134.19,6.18482302]
[1765225895556,8.80994492,134.2,134.19,13.63694314]
[1765225895879,9.00994492,134.21,134.19,13.63694314]
[1765225896060,9.00994492,134.21,134.19,6.18482302]
[1765225896471,9.67994492,134.21,134.19,6.18482302]
[1765225896651,9.67994492,134.21,134.18,75.73726869]
[1765225897079,9.00994492,134.21,134.18,75.73726869]
[1765225897266,9.67994492,134.21,134.18,75.73726869]